{"text_format":"1","workbook":"xlsx","n_sheets":1,"sheets":["Special No_DKK"],"not_rendered":{"charts":0,"images":1,"macros":1,"external_links":8,"defined_names":110,"comments":0,"pivot_tables":0},"unopened":[],"bounds":{"document_bytes":16777216,"sheet_cells":100000,"rows_first":2000,"rows_last":500,"rows_between":2000,"halvings":0,"cell_chars":16384,"cell_head_chars":4096},"cells_cut":0,"cells_raw":0,"read":"whole","date_system":"1900"}

{"sheet":"Special No_DKK","index":0,"n_rows":109,"n_cols":44,"rows_kept":109,"cut":false,"hidden":false,"merged":[[83,29,83,30],[81,42,81,43],[82,42,82,43],[83,42,83,43],[79,3,79,4],[80,3,80,4],[81,3,81,4],[81,29,81,30],[82,29,82,30]]}
[]
[null,"Select Currency","DKK","<<<<",null,null,null,null,null,null,null,null,null,null,null,null,null,null,null,null,null,null,null,null,null,null,{"$f":"$C$2","v":"DKK"},"GBP","USD","CHF","EURO","SEK","SGD","DKK"]
[null,null,null,null,null,null,null,null,null,null,null,null,null,null,null,null,null,null,null,null,null,null,null,null,null,null,"EURO",0.91,1.1971000000000001,1.1823999999999999,1,10.4621,1.6295999999999999,7.5989000000000004]
["Description- DKK"]
["Number Range","Description",{"$f":"\"Peak Setup\"&\" (\"&VLOOKUP($AA$2,$AG$8:$AH$11,2,0)&\")\"","v":"Peak Setup (Kr.)"},{"$f":"\"Peak Unit Rate\"&\" (\"&VLOOKUP($AA$2,$AG$8:$AH$11,2,0)&\")\"","v":"Peak Unit Rate (Kr.)"},{"$f":"\"Off-Peak Unit Rate\"&\" (\"&VLOOKUP($AA$2,$AG$8:$AH$11,2,0)&\")\"","v":"Off-Peak Unit Rate (Kr.)"}]
[112,"Emergency",{"$f":"VLOOKUP($AA$2,$AG$8:$AH$11,2,0)&\" \"&ROUNDUP(AC8*HLOOKUP($AA$2,$AB$2:$AH$3,2,0),4)","v":"Kr. 0"},{"$f":"VLOOKUP($AA$2,$AG$8:$AH$11,2,0)&\" \"&ROUNDUP(AD8*HLOOKUP($AA$2,$AB$2:$AH$3,2,0),4)","v":"Kr. 0"},"Kr. 0",null,null,null,null,null,null,null,null,null,null,null,null,null,null,null,null,null,null,null,null,null,"Description- EURO",null,null,null,null,null,null,null,null,null,null,null,null,"Description- DKK"]
[113,"Emergency heath service",{"$f":"VLOOKUP($AA$2,$AG$8:$AH$11,2,0)&\" \"&ROUNDUP(AC9*HLOOKUP($AA$2,$AB$2:$AH$3,2,0),4)","v":"Kr. 0"},"Kr. 0","Kr. 0",null,null,null,null,null,null,null,null,null,null,null,null,null,null,null,null,null,null,null,null,null,"Number Range","Description","Peak Setup (EUR)","Peak Unit Rate (EUR)","Off-Peak Unit Rate (EUR)",null,null,null,null,null,null,null,null,"Number Range","Description","Peak Setup (DKK)","Peak Unit Rate (DKK)","Off-Peak Unit Rate (DKK)"]
[114,"Direct Call Local Police",{"$f":"VLOOKUP($AA$2,$AG$8:$AH$11,2,0)&\" \"&ROUNDUP(AC10*HLOOKUP($AA$2,$AB$2:$AH$3,2,0),4)","v":"Kr. 0.2"},"Kr. 0.2","Kr. 0.2",null,null,null,null,null,null,null,null,null,null,null,null,null,null,null,null,null,null,null,null,null,112,"Emergency",0,0,0,null,"EURO","€",null,null,null,null,null,112,"Emergency",0,0,0]
[116111,"Childrens Hotline",{"$f":"VLOOKUP($AA$2,$AG$8:$AH$11,2,0)&\" \"&ROUNDUP(AC11*HLOOKUP($AA$2,$AB$2:$AH$3,2,0),4)","v":"Kr. 0"},"Kr. 0","Kr. 0",null,null,null,null,null,null,null,null,null,null,null,null,null,null,null,null,null,null,null,null,null,113,"Emergency heath service",0,0,0,null,"GBP","£",null,null,null,null,null,113,"Emergency heath service",0,0,0]
[118,"Number Enquiries",{"$f":"VLOOKUP($AA$2,$AG$8:$AH$11,2,0)&\" \"&ROUNDUP(AC12*HLOOKUP($AA$2,$AB$2:$AH$3,2,0),4)","v":"Kr. 14"},"Kr. 0","Kr. 0",null,null,null,null,null,null,null,null,null,null,null,null,null,null,null,null,null,null,null,null,null,114,"Direct Call Local Police",2.6319598889312928E-2,2.6319598889312928E-2,2.6319598889312928E-2,null,"USD","$",null,null,null,null,null,114,"Direct Call Local Police",0.2,0.2,0.2]
[1810,"Directory Enquiries",{"$f":"VLOOKUP($AA$2,$AG$8:$AH$11,2,0)&\" \"&ROUNDUP(AC13*HLOOKUP($AA$2,$AB$2:$AH$3,2,0),4)","v":"Kr. 14"},"Kr. 0","Kr. 0",null,null,null,null,null,null,null,null,null,null,null,null,null,null,null,null,null,null,null,null,null,116111,"Childrens Hotline",0,0,0,null,"DKK","Kr.",null,null,null,null,null,116111,"Childrens Hotline",0,0,0]
[1811,"Automatic Information",{"$f":"VLOOKUP($AA$2,$AG$8:$AH$11,2,0)&\" \"&ROUNDUP(AC14*HLOOKUP($AA$2,$AB$2:$AH$3,2,0),4)","v":"Kr. 4"},"Kr. 0","Kr. 0",null,null,null,null,null,null,null,null,null,null,null,null,null,null,null,null,null,null,null,null,null,118,"Number Enquiries",1.8423719222519048,0,0,null,null,null,null,null,null,null,null,118,"Number Enquiries",14,0,0]
[1812,"Animal Protection",{"$f":"VLOOKUP($AA$2,$AG$8:$AH$11,2,0)&\" \"&ROUNDUP(AC15*HLOOKUP($AA$2,$AB$2:$AH$3,2,0),4)","v":"Kr. 0.8"},"Kr. 0","Kr. 0",null,null,null,null,null,null,null,null,null,null,null,null,null,null,null,null,null,null,null,null,null,1810,"Directory Enquiries",1.8423719222519048,0,0,null,null,null,null,null,null,null,null,1810,"Directory Enquiries",14,0,0]
[1813,"Emergency heath service",{"$f":"VLOOKUP($AA$2,$AG$8:$AH$11,2,0)&\" \"&ROUNDUP(AC16*HLOOKUP($AA$2,$AB$2:$AH$3,2,0),4)","v":"Kr. 0"},"Kr. 0","Kr. 0",null,null,null,null,null,null,null,null,null,null,null,null,null,null,null,null,null,null,null,null,null,1811,"Automatic Information",0.52639197778625846,0,0,null,null,null,null,null,null,null,null,1811,"Automatic Information",4,0,0]
[1830,"DR News Services",{"$f":"VLOOKUP($AA$2,$AG$8:$AH$11,2,0)&\" \"&ROUNDUP(AC17*HLOOKUP($AA$2,$AB$2:$AH$3,2,0),4)","v":"Kr. 0.18"},"Kr. 2","Kr. 2",null,null,null,null,null,null,null,null,null,null,null,null,null,null,null,null,null,null,null,null,null,1812,"Animal Protection",0.10527839555725171,0,0,null,null,null,null,null,null,null,null,1812,"Animal Protection",0.8,0,0]
[1850,"The Blinds Number Service (Abroad)",{"$f":"VLOOKUP($AA$2,$AG$8:$AH$11,2,0)&\" \"&ROUNDUP(AC18*HLOOKUP($AA$2,$AB$2:$AH$3,2,0),4)","v":"Kr. 0"},"Kr. 0","Kr. 0",null,null,null,null,null,null,null,null,null,null,null,null,null,null,null,null,null,null,null,null,null,1813,"Emergency heath service",0,0,0,null,null,null,null,null,null,null,null,1813,"Emergency heath service",0,0,0]
[1851,"The Blinds Number Service (Domestic)",{"$f":"VLOOKUP($AA$2,$AG$8:$AH$11,2,0)&\" \"&ROUNDUP(AC19*HLOOKUP($AA$2,$AB$2:$AH$3,2,0),4)","v":"Kr. 0"},"Kr. 0","Kr. 0",null,null,null,null,null,null,null,null,null,null,null,null,null,null,null,null,null,null,null,null,null,1830,"DR News Services",2.3687639000381632E-2,0.26319598889312923,0.26319598889312923,null,null,null,null,null,null,null,null,1830,"DR News Services",0.18,2,2]
[1853,"Weather Forecast (DMI)",{"$f":"VLOOKUP($AA$2,$AG$8:$AH$11,2,0)&\" \"&ROUNDUP(AC20*HLOOKUP($AA$2,$AB$2:$AH$3,2,0),4)","v":"Kr. 0.18"},"Kr. 2","Kr. 2",null,null,null,null,null,null,null,null,null,null,null,null,null,null,null,null,null,null,null,null,null,1850,"The Blinds Number Service (Abroad)",0,0,0,null,null,null,null,null,null,null,null,1850,"The Blinds Number Service (Abroad)",0,0,0]
[1864,"Ritzau's Phone Paper",{"$f":"VLOOKUP($AA$2,$AG$8:$AH$11,2,0)&\" \"&ROUNDUP(AC21*HLOOKUP($AA$2,$AB$2:$AH$3,2,0),4)","v":"Kr. 0.2"},"Kr. 1.4","Kr. 1.4",null,null,null,null,null,null,null,null,null,null,null,null,null,null,null,null,null,null,null,null,null,1851,"The Blinds Number Service (Domestic)",0,0,0,null,null,null,null,null,null,null,null,1851,"The Blinds Number Service (Domestic)",0,0,0]
[1881,"Statens Informations Service of the State",{"$f":"VLOOKUP($AA$2,$AG$8:$AH$11,2,0)&\" \"&ROUNDUP(AC22*HLOOKUP($AA$2,$AB$2:$AH$3,2,0),4)","v":"Kr. 0.18"},"Kr. 0.2","Kr. 0.1",null,null,null,null,null,null,null,null,null,null,null,null,null,null,null,null,null,null,null,null,null,1853,"Weather Forecast (DMI)",2.3687639000381632E-2,0.26319598889312923,0.26319598889312923,null,null,null,null,null,null,null,null,1853,"Weather Forecast (DMI)",0.18,2,2]
[70101155,"Clock",{"$f":"VLOOKUP($AA$2,$AG$8:$AH$11,2,0)&\" \"&ROUNDUP(AC23*HLOOKUP($AA$2,$AB$2:$AH$3,2,0),4)","v":"Kr. 0.88"},"Kr. 0","Kr. 0",null,null,null,null,null,null,null,null,null,null,null,null,null,null,null,null,null,null,null,null,null,1864,"Ritzau's Phone Paper",2.6319598889312928E-2,0.18423719222519047,0.18423719222519047,null,null,null,null,null,null,null,null,1864,"Ritzau's Phone Paper",0.2,1.4,1.4]
["80xxxxxx","Free Phone 80-numbers",{"$f":"VLOOKUP($AA$2,$AG$8:$AH$11,2,0)&\" \"&ROUNDUP(AC24*HLOOKUP($AA$2,$AB$2:$AH$3,2,0),4)","v":"Kr. 0"},"Kr. 0","Kr. 0",null,null,null,null,null,null,null,null,null,null,null,null,null,null,null,null,null,null,null,null,null,1881,"Statens Informations Service of the State",2.3687639000381632E-2,2.6319598889312928E-2,1.3159799444656464E-2,null,null,null,null,null,null,null,null,1881,"Statens Informations Service of the State",0.18,0.2,0.1]
[90909090,"Meeting Place",{"$f":"VLOOKUP($AA$2,$AG$8:$AH$11,2,0)&\" \"&ROUNDUP(AC25*HLOOKUP($AA$2,$AB$2:$AH$3,2,0),4)","v":"Kr. 0.18"},"Kr. 2.2","Kr. 2.2",null,null,null,null,null,null,null,null,null,null,null,null,null,null,null,null,null,null,null,null,null,70101155,"Clock",0.11580623511297687,0,0,null,null,null,null,null,null,null,null,70101155,"Clock",0.88,0,0]
[90901111,"Chat Services",{"$f":"VLOOKUP($AA$2,$AG$8:$AH$11,2,0)&\" \"&ROUNDUP(AC26*HLOOKUP($AA$2,$AB$2:$AH$3,2,0),4)","v":"Kr. 0.18"},"Kr. 4.4","Kr. 4.4",null,null,null,null,null,null,null,null,null,null,null,null,null,null,null,null,null,null,null,null,null,"80xxxxxx","Free Phone 80-numbers",0,0,0,null,null,null,null,null,null,null,null,"80xxxxxx","Free Phone 80-numbers",0,0,0]
["909xxxxx","Public Pay Phones",{"$f":"VLOOKUP($AA$2,$AG$8:$AH$11,2,0)&\" \"&ROUNDUP(AC27*HLOOKUP($AA$2,$AB$2:$AH$3,2,0),4)","v":"Kr. 3.44"},"Kr. 0.56","Kr. 0.56",null,null,null,null,null,null,null,null,null,null,null,null,null,null,null,null,null,null,null,null,null,90909090,"Meeting Place",2.3687639000381632E-2,0.28951558778244219,0.28951558778244219,null,null,null,null,null,null,null,null,90909090,"Meeting Place",0.18,2.2000000000000002,2.2000000000000002]
[16101,"TDC internet",{"$f":"VLOOKUP($AA$2,$AG$8:$AH$11,2,0)&\" \"&ROUNDUP(AC28*HLOOKUP($AA$2,$AB$2:$AH$3,2,0),4)","v":"Kr. 0.17"},"Kr. 0.152","Kr. 0.0746",null,null,null,null,null,null,null,null,null,null,null,null,null,null,null,null,null,null,null,null,null,90901111,"Chat Services",2.3687639000381632E-2,0.57903117556488437,0.57903117556488437,null,null,null,null,null,null,null,null,90901111,"Chat Services",0.18,4.4000000000000004,4.4000000000000004]
[16110,"TDC Internet Service Free",{"$f":"VLOOKUP($AA$2,$AG$8:$AH$11,2,0)&\" \"&ROUNDUP(AC29*HLOOKUP($AA$2,$AB$2:$AH$3,2,0),4)","v":"Kr. 0"},"Kr. 0","Kr. 0",null,null,null,null,null,null,null,null,null,null,null,null,null,null,null,null,null,null,null,null,null,"909xxxxx","Public Pay Phones",0.45269710089618231,7.36948768900762E-2,7.36948768900762E-2,null,null,null,null,null,null,null,null,"909xxxxx","Public Pay Phones",3.44,0.56000000000000005,0.56000000000000005]
["909200xx","Chat and Conference Calls-A ",{"$f":"VLOOKUP($AA$2,$AG$8:$AH$11,2,0)&\" \"&ROUNDUP(AC30*HLOOKUP($AA$2,$AB$2:$AH$3,2,0),4)","v":"Kr. 0.2"},"Kr. 1.2","Kr. 1.2",null,null,null,null,null,null,null,null,null,null,null,null,null,null,null,null,null,null,null,null,null,16101,"TDC internet",2.2371659055915989E-2,2.0002895155877824E-2,9.8172103857137212E-3,null,null,null,null,null,null,null,null,16101,"TDC internet",0.17,0.152,7.46E-2]
["909201xx","Chat and Conference Calls-A ",{"$f":"VLOOKUP($AA$2,$AG$8:$AH$11,2,0)&\" \"&ROUNDUP(AC31*HLOOKUP($AA$2,$AB$2:$AH$3,2,0),4)","v":"Kr. 0.2"},"Kr. 1.2","Kr. 1.2",null,null,null,null,null,null,null,null,null,null,null,null,null,null,null,null,null,null,null,null,null,16110,"TDC Internet Service Free",0,0,0,null,null,null,null,null,null,null,null,16110,"TDC Internet Service Free",0,0,0]
["909202xx","Chat and Conference Calls-A ",{"$f":"VLOOKUP($AA$2,$AG$8:$AH$11,2,0)&\" \"&ROUNDUP(AC32*HLOOKUP($AA$2,$AB$2:$AH$3,2,0),4)","v":"Kr. 0.2"},"Kr. 1.2","Kr. 1.2",null,null,null,null,null,null,null,null,null,null,null,null,null,null,null,null,null,null,null,null,null,"909200xx","Chat and Conference Calls-A ",2.6319598889312928E-2,0.15791759333587754,0.15791759333587754,null,null,null,null,null,null,null,null,"909200xx","Chat and Conference Calls-A ",0.2,1.2,1.2]
["909203xx","Chat and Conference Calls-A ",{"$f":"VLOOKUP($AA$2,$AG$8:$AH$11,2,0)&\" \"&ROUNDUP(AC33*HLOOKUP($AA$2,$AB$2:$AH$3,2,0),4)","v":"Kr. 0.2"},"Kr. 1.2","Kr. 1.2",null,null,null,null,null,null,null,null,null,null,null,null,null,null,null,null,null,null,null,null,null,"909201xx","Chat and Conference Calls-A ",2.6319598889312928E-2,0.15791759333587754,0.15791759333587754,null,null,null,null,null,null,null,null,"909201xx","Chat and Conference Calls-A ",0.2,1.2,1.2]
["909204xx","Chat and Conference Calls-A ",{"$f":"VLOOKUP($AA$2,$AG$8:$AH$11,2,0)&\" \"&ROUNDUP(AC34*HLOOKUP($AA$2,$AB$2:$AH$3,2,0),4)","v":"Kr. 0.2"},"Kr. 1.2","Kr. 1.2",null,null,null,null,null,null,null,null,null,null,null,null,null,null,null,null,null,null,null,null,null,"909202xx","Chat and Conference Calls-A ",2.6319598889312928E-2,0.15791759333587754,0.15791759333587754,null,null,null,null,null,null,null,null,"909202xx","Chat and Conference Calls-A ",0.2,1.2,1.2]
["909205xx","Chat and Conference Calls-B",{"$f":"VLOOKUP($AA$2,$AG$8:$AH$11,2,0)&\" \"&ROUNDUP(AC35*HLOOKUP($AA$2,$AB$2:$AH$3,2,0),4)","v":"Kr. 0.2"},"Kr. 3.2","Kr. 3.2",null,null,null,null,null,null,null,null,null,null,null,null,null,null,null,null,null,null,null,null,null,"909203xx","Chat and Conference Calls-A ",2.6319598889312928E-2,0.15791759333587754,0.15791759333587754,null,null,null,null,null,null,null,null,"909203xx","Chat and Conference Calls-A ",0.2,1.2,1.2]
["909206xx","Chat and Conference Calls-B",{"$f":"VLOOKUP($AA$2,$AG$8:$AH$11,2,0)&\" \"&ROUNDUP(AC36*HLOOKUP($AA$2,$AB$2:$AH$3,2,0),4)","v":"Kr. 0.2"},"Kr. 3.2","Kr. 3.2",null,null,null,null,null,null,null,null,null,null,null,null,null,null,null,null,null,null,null,null,null,"909204xx","Chat and Conference Calls-A ",2.6319598889312928E-2,0.15791759333587754,0.15791759333587754,null,null,null,null,null,null,null,null,"909204xx","Chat and Conference Calls-A ",0.2,1.2,1.2]
["909207xx","Chat and Conference Calls-B",{"$f":"VLOOKUP($AA$2,$AG$8:$AH$11,2,0)&\" \"&ROUNDUP(AC37*HLOOKUP($AA$2,$AB$2:$AH$3,2,0),4)","v":"Kr. 0.2"},"Kr. 3.2","Kr. 3.2",null,null,null,null,null,null,null,null,null,null,null,null,null,null,null,null,null,null,null,null,null,"909205xx","Chat and Conference Calls-B",2.6319598889312928E-2,0.42111358222900686,0.42111358222900686,null,null,null,null,null,null,null,null,"909205xx","Chat and Conference Calls-B",0.2,3.2,3.2]
["909208xx","Special Numbers_DK",{"$f":"VLOOKUP($AA$2,$AG$8:$AH$11,2,0)&\" \"&ROUNDUP(AC38*HLOOKUP($AA$2,$AB$2:$AH$3,2,0),4)","v":"Kr. 0.2"},"Kr. 3.84","Kr. 3.84",null,null,null,null,null,null,null,null,null,null,null,null,null,null,null,null,null,null,null,null,null,"909206xx","Chat and Conference Calls-B",2.6319598889312928E-2,0.42111358222900686,0.42111358222900686,null,null,null,null,null,null,null,null,"909206xx","Chat and Conference Calls-B",0.2,3.2,3.2]
["909209xx","Chat and Conference Calls-C",{"$f":"VLOOKUP($AA$2,$AG$8:$AH$11,2,0)&\" \"&ROUNDUP(AC39*HLOOKUP($AA$2,$AB$2:$AH$3,2,0),4)","v":"Kr. 0.2"},"Kr. 3.84","Kr. 3.84",null,null,null,null,null,null,null,null,null,null,null,null,null,null,null,null,null,null,null,null,null,"909207xx","Chat and Conference Calls-B",2.6319598889312928E-2,0.42111358222900686,0.42111358222900686,null,null,null,null,null,null,null,null,"909207xx","Chat and Conference Calls-B",0.2,3.2,3.2]
["9095xxxx","Telenor Chat Serv",{"$f":"VLOOKUP($AA$2,$AG$8:$AH$11,2,0)&\" \"&ROUNDUP(AC40*HLOOKUP($AA$2,$AB$2:$AH$3,2,0),4)","v":"Kr. 0"},"Kr. 1.5","Kr. 1.5",null,null,null,null,null,null,null,null,null,null,null,null,null,null,null,null,null,null,null,null,null,"909208xx","Special Numbers_DK",2.6319598889312928E-2,0.50533629867480812,0.50533629867480812,null,null,null,null,null,null,null,null,"909208xx","Special Numbers_DK",0.2,3.84,3.84]
["901010xx","Premium Rate Category I-A",{"$f":"VLOOKUP($AA$2,$AG$8:$AH$11,2,0)&\" \"&ROUNDUP(AC41*HLOOKUP($AA$2,$AB$2:$AH$3,2,0),4)","v":"Kr. 0.18"},"Kr. 4.4","Kr. 4.4",null,null,null,null,null,null,null,null,null,null,null,null,null,null,null,null,null,null,null,null,null,"909209xx","Chat and Conference Calls-C",2.6319598889312928E-2,0.50533629867480812,0.50533629867480812,null,null,null,null,null,null,null,null,"909209xx","Chat and Conference Calls-C",0.2,3.84,3.84]
[90901050,"Chat Services",{"$f":"VLOOKUP($AA$2,$AG$8:$AH$11,2,0)&\" \"&ROUNDUP(AC42*HLOOKUP($AA$2,$AB$2:$AH$3,2,0),4)","v":"Kr. 0.18"},"Kr. 4.4","Kr. 4.4",null,null,null,null,null,null,null,null,null,null,null,null,null,null,null,null,null,null,null,null,null,"9095xxxx","Telenor Chat Serv",0,0.19739699166984695,0.19739699166984695,null,null,null,null,null,null,null,null,"9095xxxx","Telenor Chat Serv",0,1.5,1.5]
[90901055,"Chat Services",{"$f":"VLOOKUP($AA$2,$AG$8:$AH$11,2,0)&\" \"&ROUNDUP(AC43*HLOOKUP($AA$2,$AB$2:$AH$3,2,0),4)","v":"Kr. 0.18"},"Kr. 4.4","Kr. 4.4",null,null,null,null,null,null,null,null,null,null,null,null,null,null,null,null,null,null,null,null,null,"901010xx","Premium Rate Category I-A",2.3687639000381632E-2,0.57903117556488437,0.57903117556488437,null,null,null,null,null,null,null,null,"901010xx","Premium Rate Category I-A",0.18,4.4000000000000004,4.4000000000000004]
[90901070,"Chat Services",{"$f":"VLOOKUP($AA$2,$AG$8:$AH$11,2,0)&\" \"&ROUNDUP(AC44*HLOOKUP($AA$2,$AB$2:$AH$3,2,0),4)","v":"Kr. 0.18"},"Kr. 4.4","Kr. 4.4",null,null,null,null,null,null,null,null,null,null,null,null,null,null,null,null,null,null,null,null,null,90901050,"Chat Services",2.3687639000381632E-2,0.57903117556488437,0.57903117556488437,null,null,null,null,null,null,null,null,90901050,"Chat Services",0.18,4.4000000000000004,4.4000000000000004]
[90901077,"Chat Services",{"$f":"VLOOKUP($AA$2,$AG$8:$AH$11,2,0)&\" \"&ROUNDUP(AC45*HLOOKUP($AA$2,$AB$2:$AH$3,2,0),4)","v":"Kr. 0.18"},"Kr. 4.4","Kr. 4.4",null,null,null,null,null,null,null,null,null,null,null,null,null,null,null,null,null,null,null,null,null,90901055,"Chat Services",2.3687639000381632E-2,0.57903117556488437,0.57903117556488437,null,null,null,null,null,null,null,null,90901055,"Chat Services",0.18,4.4000000000000004,4.4000000000000004]
[90901099,"Chat Services",{"$f":"VLOOKUP($AA$2,$AG$8:$AH$11,2,0)&\" \"&ROUNDUP(AC46*HLOOKUP($AA$2,$AB$2:$AH$3,2,0),4)","v":"Kr. 0.18"},"Kr. 4.4","Kr. 4.4",null,null,null,null,null,null,null,null,null,null,null,null,null,null,null,null,null,null,null,null,null,90901070,"Chat Services",2.3687639000381632E-2,0.57903117556488437,0.57903117556488437,null,null,null,null,null,null,null,null,90901070,"Chat Services",0.18,4.4000000000000004,4.4000000000000004]
[90901100,"Chat Services",{"$f":"VLOOKUP($AA$2,$AG$8:$AH$11,2,0)&\" \"&ROUNDUP(AC47*HLOOKUP($AA$2,$AB$2:$AH$3,2,0),4)","v":"Kr. 0.18"},"Kr. 4.4","Kr. 4.4",null,null,null,null,null,null,null,null,null,null,null,null,null,null,null,null,null,null,null,null,null,90901077,"Chat Services",2.3687639000381632E-2,0.57903117556488437,0.57903117556488437,null,null,null,null,null,null,null,null,90901077,"Chat Services",0.18,4.4000000000000004,4.4000000000000004]
[90901110,"Chat Services",{"$f":"VLOOKUP($AA$2,$AG$8:$AH$11,2,0)&\" \"&ROUNDUP(AC48*HLOOKUP($AA$2,$AB$2:$AH$3,2,0),4)","v":"Kr. 0.18"},"Kr. 4.4","Kr. 4.4",null,null,null,null,null,null,null,null,null,null,null,null,null,null,null,null,null,null,null,null,null,90901099,"Chat Services",2.3687639000381632E-2,0.57903117556488437,0.57903117556488437,null,null,null,null,null,null,null,null,90901099,"Chat Services",0.18,4.4000000000000004,4.4000000000000004]
[90901155,"Chat Services",{"$f":"VLOOKUP($AA$2,$AG$8:$AH$11,2,0)&\" \"&ROUNDUP(AC49*HLOOKUP($AA$2,$AB$2:$AH$3,2,0),4)","v":"Kr. 0.18"},"Kr. 4.4","Kr. 4.4",null,null,null,null,null,null,null,null,null,null,null,null,null,null,null,null,null,null,null,null,null,90901100,"Chat Services",2.3687639000381632E-2,0.57903117556488437,0.57903117556488437,null,null,null,null,null,null,null,null,90901100,"Chat Services",0.18,4.4000000000000004,4.4000000000000004]
[90901166,"Chat Services",{"$f":"VLOOKUP($AA$2,$AG$8:$AH$11,2,0)&\" \"&ROUNDUP(AC50*HLOOKUP($AA$2,$AB$2:$AH$3,2,0),4)","v":"Kr. 0.18"},"Kr. 4.4","Kr. 4.4",null,null,null,null,null,null,null,null,null,null,null,null,null,null,null,null,null,null,null,null,null,90901110,"Chat Services",2.3687639000381632E-2,0.57903117556488437,0.57903117556488437,null,null,null,null,null,null,null,null,90901110,"Chat Services",0.18,4.4000000000000004,4.4000000000000004]
[90901199,"Chat Services",{"$f":"VLOOKUP($AA$2,$AG$8:$AH$11,2,0)&\" \"&ROUNDUP(AC51*HLOOKUP($AA$2,$AB$2:$AH$3,2,0),4)","v":"Kr. 0.18"},"Kr. 4.4","Kr. 4.4",null,null,null,null,null,null,null,null,null,null,null,null,null,null,null,null,null,null,null,null,null,90901155,"Chat Services",2.3687639000381632E-2,0.57903117556488437,0.57903117556488437,null,null,null,null,null,null,null,null,90901155,"Chat Services",0.18,4.4000000000000004,4.4000000000000004]
[90901222,"Chat Services",{"$f":"VLOOKUP($AA$2,$AG$8:$AH$11,2,0)&\" \"&ROUNDUP(AC52*HLOOKUP($AA$2,$AB$2:$AH$3,2,0),4)","v":"Kr. 0.18"},"Kr. 4.4","Kr. 4.4",null,null,null,null,null,null,null,null,null,null,null,null,null,null,null,null,null,null,null,null,null,90901166,"Chat Services",2.3687639000381632E-2,0.57903117556488437,0.57903117556488437,null,null,null,null,null,null,null,null,90901166,"Chat Services",0.18,4.4000000000000004,4.4000000000000004]
[90901400,"Chat Services",{"$f":"VLOOKUP($AA$2,$AG$8:$AH$11,2,0)&\" \"&ROUNDUP(AC53*HLOOKUP($AA$2,$AB$2:$AH$3,2,0),4)","v":"Kr. 0.18"},"Kr. 4.4","Kr. 4.4",null,null,null,null,null,null,null,null,null,null,null,null,null,null,null,null,null,null,null,null,null,90901199,"Chat Services",2.3687639000381632E-2,0.57903117556488437,0.57903117556488437,null,null,null,null,null,null,null,null,90901199,"Chat Services",0.18,4.4000000000000004,4.4000000000000004]
[90901777,"Chat Services",{"$f":"VLOOKUP($AA$2,$AG$8:$AH$11,2,0)&\" \"&ROUNDUP(AC54*HLOOKUP($AA$2,$AB$2:$AH$3,2,0),4)","v":"Kr. 0.18"},"Kr. 4.4","Kr. 4.4",null,null,null,null,null,null,null,null,null,null,null,null,null,null,null,null,null,null,null,null,null,90901222,"Chat Services",2.3687639000381632E-2,0.57903117556488437,0.57903117556488437,null,null,null,null,null,null,null,null,90901222,"Chat Services",0.18,4.4000000000000004,4.4000000000000004]
["90901xxx","Chat Services",{"$f":"VLOOKUP($AA$2,$AG$8:$AH$11,2,0)&\" \"&ROUNDUP(AC55*HLOOKUP($AA$2,$AB$2:$AH$3,2,0),4)","v":"Kr. 0.18"},"Kr. 4.4","Kr. 4.4",null,null,null,null,null,null,null,null,null,null,null,null,null,null,null,null,null,null,null,null,null,90901400,"Chat Services",2.3687639000381632E-2,0.57903117556488437,0.57903117556488437,null,null,null,null,null,null,null,null,90901400,"Chat Services",0.18,4.4000000000000004,4.4000000000000004]
[90901818,"Other Chat Services",{"$f":"VLOOKUP($AA$2,$AG$8:$AH$11,2,0)&\" \"&ROUNDUP(AC56*HLOOKUP($AA$2,$AB$2:$AH$3,2,0),4)","v":"Kr. 0.18"},"Kr. 4.4","Kr. 4.4",null,null,null,null,null,null,null,null,null,null,null,null,null,null,null,null,null,null,null,null,null,90901777,"Chat Services",2.3687639000381632E-2,0.57903117556488437,0.57903117556488437,null,null,null,null,null,null,null,null,90901777,"Chat Services",0.18,4.4000000000000004,4.4000000000000004]
[90901002,"Other Chat Services",{"$f":"VLOOKUP($AA$2,$AG$8:$AH$11,2,0)&\" \"&ROUNDUP(AC57*HLOOKUP($AA$2,$AB$2:$AH$3,2,0),4)","v":"Kr. 0.18"},"Kr. 4.4","Kr. 4.4",null,null,null,null,null,null,null,null,null,null,null,null,null,null,null,null,null,null,null,null,null,"90901xxx","Chat Services",2.3687639000381632E-2,0.57903117556488437,0.57903117556488437,null,null,null,null,null,null,null,null,"90901xxx","Chat Services",0.18,4.4000000000000004,4.4000000000000004]
[90901010,"Other Chat Services",{"$f":"VLOOKUP($AA$2,$AG$8:$AH$11,2,0)&\" \"&ROUNDUP(AC58*HLOOKUP($AA$2,$AB$2:$AH$3,2,0),4)","v":"Kr. 0.18"},"Kr. 4.4","Kr. 4.4",null,null,null,null,null,null,null,null,null,null,null,null,null,null,null,null,null,null,null,null,null,90901818,"Other Chat Services",2.3687639000381632E-2,0.57903117556488437,0.57903117556488437,null,null,null,null,null,null,null,null,90901818,"Other Chat Services",0.18,4.4000000000000004,4.4000000000000004]
[90901020,"Other Chat Services",{"$f":"VLOOKUP($AA$2,$AG$8:$AH$11,2,0)&\" \"&ROUNDUP(AC59*HLOOKUP($AA$2,$AB$2:$AH$3,2,0),4)","v":"Kr. 0.18"},"Kr. 4.4","Kr. 4.4",null,null,null,null,null,null,null,null,null,null,null,null,null,null,null,null,null,null,null,null,null,90901002,"Other Chat Services",2.3687639000381632E-2,0.57903117556488437,0.57903117556488437,null,null,null,null,null,null,null,null,90901002,"Other Chat Services",0.18,4.4000000000000004,4.4000000000000004]
[90901022,"Other Chat Services",{"$f":"VLOOKUP($AA$2,$AG$8:$AH$11,2,0)&\" \"&ROUNDUP(AC60*HLOOKUP($AA$2,$AB$2:$AH$3,2,0),4)","v":"Kr. 0.18"},"Kr. 4.4","Kr. 4.4",null,null,null,null,null,null,null,null,null,null,null,null,null,null,null,null,null,null,null,null,null,90901010,"Other Chat Services",2.3687639000381632E-2,0.57903117556488437,0.57903117556488437,null,null,null,null,null,null,null,null,90901010,"Other Chat Services",0.18,4.4000000000000004,4.4000000000000004]
[90901024,"Other Chat Services",{"$f":"VLOOKUP($AA$2,$AG$8:$AH$11,2,0)&\" \"&ROUNDUP(AC61*HLOOKUP($AA$2,$AB$2:$AH$3,2,0),4)","v":"Kr. 0.18"},"Kr. 4.4","Kr. 4.4",null,null,null,null,null,null,null,null,null,null,null,null,null,null,null,null,null,null,null,null,null,90901020,"Other Chat Services",2.3687639000381632E-2,0.57903117556488437,0.57903117556488437,null,null,null,null,null,null,null,null,90901020,"Other Chat Services",0.18,4.4000000000000004,4.4000000000000004]
[90901040,"Other Chat Services",{"$f":"VLOOKUP($AA$2,$AG$8:$AH$11,2,0)&\" \"&ROUNDUP(AC62*HLOOKUP($AA$2,$AB$2:$AH$3,2,0),4)","v":"Kr. 0.18"},"Kr. 4.4","Kr. 4.4",null,null,null,null,null,null,null,null,null,null,null,null,null,null,null,null,null,null,null,null,null,90901022,"Other Chat Services",2.3687639000381632E-2,0.57903117556488437,0.57903117556488437,null,null,null,null,null,null,null,null,90901022,"Other Chat Services",0.18,4.4000000000000004,4.4000000000000004]
[90901049,"Other Chat Services",{"$f":"VLOOKUP($AA$2,$AG$8:$AH$11,2,0)&\" \"&ROUNDUP(AC63*HLOOKUP($AA$2,$AB$2:$AH$3,2,0),4)","v":"Kr. 0.18"},"Kr. 4.4","Kr. 4.4",null,null,null,null,null,null,null,null,null,null,null,null,null,null,null,null,null,null,null,null,null,90901024,"Other Chat Services",2.3687639000381632E-2,0.57903117556488437,0.57903117556488437,null,null,null,null,null,null,null,null,90901024,"Other Chat Services",0.18,4.4000000000000004,4.4000000000000004]
[90901060,"Other Chat Services",{"$f":"VLOOKUP($AA$2,$AG$8:$AH$11,2,0)&\" \"&ROUNDUP(AC64*HLOOKUP($AA$2,$AB$2:$AH$3,2,0),4)","v":"Kr. 0.18"},"Kr. 4.4","Kr. 4.4",null,null,null,null,null,null,null,null,null,null,null,null,null,null,null,null,null,null,null,null,null,90901040,"Other Chat Services",2.3687639000381632E-2,0.57903117556488437,0.57903117556488437,null,null,null,null,null,null,null,null,90901040,"Other Chat Services",0.18,4.4000000000000004,4.4000000000000004]
[90901066,"Other Chat Services",{"$f":"VLOOKUP($AA$2,$AG$8:$AH$11,2,0)&\" \"&ROUNDUP(AC65*HLOOKUP($AA$2,$AB$2:$AH$3,2,0),4)","v":"Kr. 0.18"},"Kr. 4.4","Kr. 4.4",null,null,null,null,null,null,null,null,null,null,null,null,null,null,null,null,null,null,null,null,null,90901049,"Other Chat Services",2.3687639000381632E-2,0.57903117556488437,0.57903117556488437,null,null,null,null,null,null,null,null,90901049,"Other Chat Services",0.18,4.4000000000000004,4.4000000000000004]
[90901080,"Other Chat Services",{"$f":"VLOOKUP($AA$2,$AG$8:$AH$11,2,0)&\" \"&ROUNDUP(AC66*HLOOKUP($AA$2,$AB$2:$AH$3,2,0),4)","v":"Kr. 0.18"},"Kr. 4.4","Kr. 4.4",null,null,null,null,null,null,null,null,null,null,null,null,null,null,null,null,null,null,null,null,null,90901060,"Other Chat Services",2.3687639000381632E-2,0.57903117556488437,0.57903117556488437,null,null,null,null,null,null,null,null,90901060,"Other Chat Services",0.18,4.4000000000000004,4.4000000000000004]
[90901088,"Other Chat Services",{"$f":"VLOOKUP($AA$2,$AG$8:$AH$11,2,0)&\" \"&ROUNDUP(AC67*HLOOKUP($AA$2,$AB$2:$AH$3,2,0),4)","v":"Kr. 0.18"},"Kr. 4.4","Kr. 4.4",null,null,null,null,null,null,null,null,null,null,null,null,null,null,null,null,null,null,null,null,null,90901066,"Other Chat Services",2.3687639000381632E-2,0.57903117556488437,0.57903117556488437,null,null,null,null,null,null,null,null,90901066,"Other Chat Services",0.18,4.4000000000000004,4.4000000000000004]
[90901090,"Other Chat Services",{"$f":"VLOOKUP($AA$2,$AG$8:$AH$11,2,0)&\" \"&ROUNDUP(AC68*HLOOKUP($AA$2,$AB$2:$AH$3,2,0),4)","v":"Kr. 0.18"},"Kr. 4.4","Kr. 4.4",null,null,null,null,null,null,null,null,null,null,null,null,null,null,null,null,null,null,null,null,null,90901080,"Other Chat Services",2.3687639000381632E-2,0.57903117556488437,0.57903117556488437,null,null,null,null,null,null,null,null,90901080,"Other Chat Services",0.18,4.4000000000000004,4.4000000000000004]
[90901122,"Other Chat Services",{"$f":"VLOOKUP($AA$2,$AG$8:$AH$11,2,0)&\" \"&ROUNDUP(AC69*HLOOKUP($AA$2,$AB$2:$AH$3,2,0),4)","v":"Kr. 0.18"},"Kr. 4.4","Kr. 4.4",null,null,null,null,null,null,null,null,null,null,null,null,null,null,null,null,null,null,null,null,null,90901088,"Other Chat Services",2.3687639000381632E-2,0.57903117556488437,0.57903117556488437,null,null,null,null,null,null,null,null,90901088,"Other Chat Services",0.18,4.4000000000000004,4.4000000000000004]
[90901150,"Other Chat Services",{"$f":"VLOOKUP($AA$2,$AG$8:$AH$11,2,0)&\" \"&ROUNDUP(AC70*HLOOKUP($AA$2,$AB$2:$AH$3,2,0),4)","v":"Kr. 0.18"},"Kr. 4.4","Kr. 4.4",null,null,null,null,null,null,null,null,null,null,null,null,null,null,null,null,null,null,null,null,null,90901090,"Other Chat Services",2.3687639000381632E-2,0.57903117556488437,0.57903117556488437,null,null,null,null,null,null,null,null,90901090,"Other Chat Services",0.18,4.4000000000000004,4.4000000000000004]
[90901177,"Other Chat Services",{"$f":"VLOOKUP($AA$2,$AG$8:$AH$11,2,0)&\" \"&ROUNDUP(AC71*HLOOKUP($AA$2,$AB$2:$AH$3,2,0),4)","v":"Kr. 0.18"},"Kr. 4.4","Kr. 4.4",null,null,null,null,null,null,null,null,null,null,null,null,null,null,null,null,null,null,null,null,null,90901122,"Other Chat Services",2.3687639000381632E-2,0.57903117556488437,0.57903117556488437,null,null,null,null,null,null,null,null,90901122,"Other Chat Services",0.18,4.4000000000000004,4.4000000000000004]
[90901200,"Other Chat Services",{"$f":"VLOOKUP($AA$2,$AG$8:$AH$11,2,0)&\" \"&ROUNDUP(AC72*HLOOKUP($AA$2,$AB$2:$AH$3,2,0),4)","v":"Kr. 0.18"},"Kr. 4.4","Kr. 4.4",null,null,null,null,null,null,null,null,null,null,null,null,null,null,null,null,null,null,null,null,null,90901150,"Other Chat Services",2.3687639000381632E-2,0.57903117556488437,0.57903117556488437,null,null,null,null,null,null,null,null,90901150,"Other Chat Services",0.18,4.4000000000000004,4.4000000000000004]
[90901212,"Other Chat Services",{"$f":"VLOOKUP($AA$2,$AG$8:$AH$11,2,0)&\" \"&ROUNDUP(AC73*HLOOKUP($AA$2,$AB$2:$AH$3,2,0),4)","v":"Kr. 0.18"},"Kr. 4.4","Kr. 4.4",null,null,null,null,null,null,null,null,null,null,null,null,null,null,null,null,null,null,null,null,null,90901177,"Other Chat Services",2.3687639000381632E-2,0.57903117556488437,0.57903117556488437,null,null,null,null,null,null,null,null,90901177,"Other Chat Services",0.18,4.4000000000000004,4.4000000000000004]
[90901221,"Other Chat Services",{"$f":"VLOOKUP($AA$2,$AG$8:$AH$11,2,0)&\" \"&ROUNDUP(AC74*HLOOKUP($AA$2,$AB$2:$AH$3,2,0),4)","v":"Kr. 0.18"},"Kr. 4.4","Kr. 4.4",null,null,null,null,null,null,null,null,null,null,null,null,null,null,null,null,null,null,null,null,null,90901200,"Other Chat Services",2.3687639000381632E-2,0.57903117556488437,0.57903117556488437,null,null,null,null,null,null,null,null,90901200,"Other Chat Services",0.18,4.4000000000000004,4.4000000000000004]
[90901234,"Other Chat Services",{"$f":"VLOOKUP($AA$2,$AG$8:$AH$11,2,0)&\" \"&ROUNDUP(AC75*HLOOKUP($AA$2,$AB$2:$AH$3,2,0),4)","v":"Kr. 0.18"},"Kr. 4.4","Kr. 4.4",null,null,null,null,null,null,null,null,null,null,null,null,null,null,null,null,null,null,null,null,null,90901212,"Other Chat Services",2.3687639000381632E-2,0.57903117556488437,0.57903117556488437,null,null,null,null,null,null,null,null,90901212,"Other Chat Services",0.18,4.4000000000000004,4.4000000000000004]
[90901300,"Other Chat Services",{"$f":"VLOOKUP($AA$2,$AG$8:$AH$11,2,0)&\" \"&ROUNDUP(AC76*HLOOKUP($AA$2,$AB$2:$AH$3,2,0),4)","v":"Kr. 0.18"},"Kr. 4.4","Kr. 4.4",null,null,null,null,null,null,null,null,null,null,null,null,null,null,null,null,null,null,null,null,null,90901221,"Other Chat Services",2.3687639000381632E-2,0.57903117556488437,0.57903117556488437,null,null,null,null,null,null,null,null,90901221,"Other Chat Services",0.18,4.4000000000000004,4.4000000000000004]
[90901313,"Other Chat Services",{"$f":"VLOOKUP($AA$2,$AG$8:$AH$11,2,0)&\" \"&ROUNDUP(AC77*HLOOKUP($AA$2,$AB$2:$AH$3,2,0),4)","v":"Kr. 0.18"},"Kr. 4.4","Kr. 4.4",null,null,null,null,null,null,null,null,null,null,null,null,null,null,null,null,null,null,null,null,null,90901234,"Other Chat Services",2.3687639000381632E-2,0.57903117556488437,0.57903117556488437,null,null,null,null,null,null,null,null,90901234,"Other Chat Services",0.18,4.4000000000000004,4.4000000000000004]
[90901333,"Other Chat Services",{"$f":"VLOOKUP($AA$2,$AG$8:$AH$11,2,0)&\" \"&ROUNDUP(AC78*HLOOKUP($AA$2,$AB$2:$AH$3,2,0),4)","v":"Kr. 0.18"},"Kr. 4.4","Kr. 4.4",null,null,null,null,null,null,null,null,null,null,null,null,null,null,null,null,null,null,null,null,null,90901300,"Other Chat Services",2.3687639000381632E-2,0.57903117556488437,0.57903117556488437,null,null,null,null,null,null,null,null,90901300,"Other Chat Services",0.18,4.4000000000000004,4.4000000000000004]
[90901414,"Other Chat Services",{"$f":"VLOOKUP($AA$2,$AG$8:$AH$11,2,0)&\" \"&ROUNDUP(AC79*HLOOKUP($AA$2,$AB$2:$AH$3,2,0),4)","v":"Kr. 0.18"},"Kr. 4.4","Kr. 4.4",null,null,null,null,null,null,null,null,null,null,null,null,null,null,null,null,null,null,null,null,null,90901313,"Other Chat Services",2.3687639000381632E-2,0.57903117556488437,0.57903117556488437,null,null,null,null,null,null,null,null,90901313,"Other Chat Services",0.18,4.4000000000000004,4.4000000000000004]
[90901444,"Other Chat Services",{"$f":"VLOOKUP($AA$2,$AG$8:$AH$11,2,0)&\" \"&ROUNDUP(AC80*HLOOKUP($AA$2,$AB$2:$AH$3,2,0),4)","v":"Kr. 0.18"},"Kr. 4.4","Kr. 4.4",null,null,null,null,null,null,null,null,null,null,null,null,null,null,null,null,null,null,null,null,null,90901333,"Other Chat Services",2.3687639000381632E-2,0.57903117556488437,0.57903117556488437,null,null,null,null,null,null,null,null,90901333,"Other Chat Services",0.18,4.4000000000000004,4.4000000000000004]
[90901500,"Other Chat Services",{"$f":"VLOOKUP($AA$2,$AG$8:$AH$11,2,0)&\" \"&ROUNDUP(AC81*HLOOKUP($AA$2,$AB$2:$AH$3,2,0),4)","v":"Kr. 0.18"},"Kr. 4.4","Kr. 4.4",null,null,null,null,null,null,null,null,null,null,null,null,null,null,null,null,null,null,null,null,null,90901414,"Other Chat Services",2.3687639000381632E-2,0.57903117556488437,0.57903117556488437,null,null,null,null,null,null,null,null,90901414,"Other Chat Services",0.18,4.4000000000000004,4.4000000000000004]
["32XXXXXX","CRYSTAL+CRYSTAL COM","As Agreed National Rates","As Agreed National Rates",null,null,null,null,null,null,null,null,null,null,null,null,null,null,null,null,null,null,null,null,null,null,90901444,"Other Chat Services",2.3687639000381632E-2,0.57903117556488437,0.57903117556488437,null,null,null,null,null,null,null,null,90901444,"Other Chat Services",0.18,4.4000000000000004,4.4000000000000004]
["33XXXXXX","CRYSTAL+CRYSTAL COM","As Agreed National Rates","As Agreed National Rates",null,null,null,null,null,null,null,null,null,null,null,null,null,null,null,null,null,null,null,null,null,null,90901500,"Other Chat Services",2.3687639000381632E-2,0.57903117556488437,0.57903117556488437,null,null,null,null,null,null,null,null,90901500,"Other Chat Services",0.18,4.4000000000000004,4.4000000000000004]
["70xxxxxx","Special Services 70-number","As Agreed National Rates","As Agreed National Rates",null,null,null,null,null,null,null,null,null,null,null,null,null,null,null,null,null,null,null,null,null,null,"32XXXXXX","CRYSTAL+CRYSTAL COM","As Agreed National Rates","As Agreed National Rates",null,null,null,null,null,null,null,null,null,"32XXXXXX","CRYSTAL+CRYSTAL COM","As Agreed National Rates","As Agreed National Rates"]
[null,null,null,null,null,null,null,null,null,null,null,null,null,null,null,null,null,null,null,null,null,null,null,null,null,null,"33XXXXXX","CRYSTAL+CRYSTAL COM","As Agreed National Rates","As Agreed National Rates",null,null,null,null,null,null,null,null,null,"33XXXXXX","CRYSTAL+CRYSTAL COM","As Agreed National Rates","As Agreed National Rates"]
["Terms & Conditions:",null,null,null,null,null,null,null,null,null,null,null,null,null,null,null,null,null,null,null,null,null,null,null,null,null,"70xxxxxx","Special Services 70-number","As Agreed National Rates","As Agreed National Rates",null,null,null,null,null,null,null,null,null,"70xxxxxx","Special Services 70-number","As Agreed National Rates","As Agreed National Rates"]
["General:"]
["This document provides all relevant pricing information associated with national dialled codes (traffic originating from same country) "]
[]
["Conditions of Offer:"]
["This offer is available for 30 days only, after which time Colt reserves the right to withdraw the offer."]
["The offer is subject to contract."]
["Standard COLT Telecom terms & conditions apply"]
[]
["Rates:"]
["All the Usage/tariff rates are on per minute/per call basis.  "]
["All prices are exclusive of VAT"]
[]
["Billing"]
["Per second Billing applies"]
["Bills are rounded to the next currency.    Bills are dispatched monthly"]
[]
["Time Bands:"]
["Daytime: 08:00 to 17.59 Mon to Fri"]
["Economy:18.00 to 23.59 & 00.00 to 07.59 Mon to Fri."]
["Weekends: 00.00 Sat to 23.59 Sun "]
[]
["Confidentiality"]
["All pricing information or any other information supplied to you by Colt is to be treated as CONFIDENTIAL INFORMATION."]
["You may disclose such information only to persons within your company who need to receive such information for the purpose of whether"]
["to enter into an agreement with Colt, and you must procure that such persons treat this information in the same confidential manner."]